[Event "Early-Titled-Tuesday-Blitz-July-09-2024"]
[Site "Chess.com"]
[Date "2024.07.09"]
[Round "2"]
[White "pinguino120"]
[Black "bilosuvenosu06"]
[Result "0-1"]
[WhiteElo "2348"]
[BlackElo "2540"]
[TimeControl "180+1"]
[EndTime "8:17:17 PDT"]
[Termination "bilosuvenosu06 won by resignation"]

1. Nf3 {[%clk 0:03:00.9]} 1... c6 {[%clk 0:02:43.1]} 2. e4 {[%clk 0:02:54.9]}
2... d6 {[%clk 0:02:42.7]} 3. d4 {[%clk 0:02:51.1]} 3... g6 {[%clk 0:02:42.6]}
4. h4 {[%clk 0:02:49.4]} 4... h6 {[%clk 0:02:41.9]} 5. h5 {[%clk 0:02:46.5]}
5... g5 {[%clk 0:02:42.2]} 6. Bd3 {[%clk 0:02:45.3]} 6... Bg7 {[%clk 0:02:42.1]}
7. c3 {[%clk 0:02:44.4]} 7... e5 {[%clk 0:02:42.1]} 8. Nbd2 {[%clk 0:02:38.6]}
8... Qc7 {[%clk 0:02:39.2]} 9. O-O {[%clk 0:02:38.4]} 9... Ne7 {[%clk
0:02:38.5]} 10. Qb3 {[%clk 0:02:00]} 10... Be6 {[%clk 0:02:31.4]} 11. Bc4 {[%clk
0:01:58.7]} 11... Bxc4 {[%clk 0:02:31.2]} 12. Nxc4 {[%clk 0:01:59.6]} 12... b5
{[%clk 0:02:27.3]} 13. Ne3 {[%clk 0:01:59.6]} 13... Nd7 {[%clk 0:02:27.2]} 14.
a4 {[%clk 0:01:55.7]} 14... bxa4 {[%clk 0:02:12]} 15. Rxa4 {[%clk 0:01:55.3]}
15... O-O {[%clk 0:02:08.8]} 16. Bd2 {[%clk 0:01:53.5]} 16... Kh7 {[%clk
0:02:08.3]} 17. Rfa1 {[%clk 0:01:53.1]} 17... Rfb8 {[%clk 0:02:07.7]} 18. Qa3
{[%clk 0:01:53]} 18... Rb7 {[%clk 0:02:04.6]} 19. Nc4 {[%clk 0:01:48.9]} 19...
Nc8 {[%clk 0:01:45.3]} 20. Qa2 {[%clk 0:01:31.5]} 20... Ndb6 {[%clk 0:01:40.3]}
21. Ra6 {[%clk 0:01:23.6]} 21... Nxc4 {[%clk 0:01:39.6]} 22. Qxc4 {[%clk
0:01:24.5]} 22... Nb6 {[%clk 0:01:40.1]} 23. Qd3 {[%clk 0:01:20.6]} 23... Qe7
{[%clk 0:01:33.4]} 24. b4 {[%clk 0:01:18.9]} 24... Rd8 {[%clk 0:01:31.6]} 25.
Be3 {[%clk 0:01:16.1]} 25... Kg8 {[%clk 0:01:15.1]} 26. Nd2 {[%clk 0:01:15.5]}
26... d5 {[%clk 0:01:10.1]} 27. Nf1 {[%clk 0:01:07.4]} 27... exd4 {[%clk
0:01:09.7]} 28. Bxd4 {[%clk 0:01:04.7]} 28... dxe4 {[%clk 0:01:09.6]} 29. Qe2
{[%clk 0:00:51]} 29... Bxd4 {[%clk 0:01:08.5]} 30. cxd4 {[%clk 0:00:51.9]} 30...
Rxd4 {[%clk 0:01:08.4]} 31. Ne3 {[%clk 0:00:47.9]} 31... Qd7 {[%clk 0:01:02.4]}
32. g4 {[%clk 0:00:38.8]} 32... Rxb4 {[%clk 0:00:51.8]} 33. Nf5 {[%clk
0:00:38.1]} 33... Kh7 {[%clk 0:00:52.1]} 34. Qe3 {[%clk 0:00:28.7]} 34... Rc4
{[%clk 0:00:29.3]} 35. Qa3 {[%clk 0:00:27.4]} 35... c5 {[%clk 0:00:21.4]} 36.
Qb2 {[%clk 0:00:27.6]} 36... Rd4 {[%clk 0:00:19.7]} 37. Nxd4 {[%clk 0:00:25.6]}
37... cxd4 {[%clk 0:00:20.6]} 38. Qc2 {[%clk 0:00:20.5]} 38... Qxg4+ {[%clk
0:00:20.7]} 39. Kf1 {[%clk 0:00:20.1]} 39... Qf5 {[%clk 0:00:19.8]} 40. R1a5
{[%clk 0:00:18.6]} 40... Qf3 {[%clk 0:00:19]} 41. Re5 {[%clk 0:00:17.1]} 41...
Qh1+ {[%clk 0:00:18.8]} 42. Ke2 {[%clk 0:00:17.1]} 42... d3+ {[%clk 0:00:19.7]}
43. Qxd3 {[%clk 0:00:16.3]} 43... exd3+ {[%clk 0:00:20.6]} 44. Kxd3 {[%clk
0:00:16.8]} 44... Qc6 {[%clk 0:00:21.5]} 0-1

[Event "Early-Titled-Tuesday-Blitz-July-09-2024"]
[Site "Chess.com"]
[Date "2024.07.09"]
[Round "2"]
[White "FREDERICKtheMATE"]
[Black "Bond_7_7_7"]
[Result "1-0"]
[WhiteElo "2743"]
[BlackElo "2465"]
[TimeControl "180+1"]
[EndTime "8:17:18 PDT"]
[Termination "FREDERICKtheMATE won by resignation"]

1. e4 {[%clk 0:03:00.9]} 1... e5 {[%clk 0:02:57]} 2. Nf3 {[%clk 0:03:00.2]} 2...
Nc6 {[%clk 0:02:56.9]} 3. Bc4 {[%clk 0:02:58.5]} 3... Bc5 {[%clk 0:02:54.4]} 4.
c3 {[%clk 0:02:57.7]} 4... Nf6 {[%clk 0:02:54.1]} 5. d3 {[%clk 0:02:58.3]} 5...
d6 {[%clk 0:02:50.7]} 6. a4 {[%clk 0:02:54.8]} 6... a6 {[%clk 0:02:49.2]} 7. h3
{[%clk 0:02:53.6]} 7... Ba7 {[%clk 0:02:48.4]} 8. Nbd2 {[%clk 0:02:50.7]} 8...
h6 {[%clk 0:02:42.8]} 9. Nf1 {[%clk 0:02:50.5]} 9... g5 {[%clk 0:02:39.4]} 10.
Ne3 {[%clk 0:02:46.6]} 10... Na5 {[%clk 0:02:12.5]} 11. Ba2 {[%clk 0:02:44.4]}
11... Qe7 {[%clk 0:02:02.5]} 12. b4 {[%clk 0:02:43.4]} 12... Nc6 {[%clk
0:02:01.9]} 13. Qe2 {[%clk 0:02:17.2]} 13... Rg8 {[%clk 0:01:39.8]} 14. g4
{[%clk 0:01:58.5]} 14... a5 {[%clk 0:01:20.9]} 15. b5 {[%clk 0:01:56.9]} 15...
Nb8 {[%clk 0:01:20.8]} 16. Ba3 {[%clk 0:01:45.5]} 16... Be6 {[%clk 0:01:20.8]}
17. Nd2 {[%clk 0:01:23.5]} 17... Nbd7 {[%clk 0:01:17.6]} 18. Nd5 {[%clk
0:01:11.9]} 18... Bxd5 {[%clk 0:01:13.3]} 19. Bxd5 {[%clk 0:01:11.8]} 19... Nxd5
{[%clk 0:01:11.1]} 20. exd5 {[%clk 0:01:12.7]} 20... Bc5 {[%clk 0:01:11.2]} 21.
Ne4 {[%clk 0:01:10.5]} 21... Bxa3 {[%clk 0:01:09.9]} 22. Rxa3 {[%clk 0:01:11.4]}
22... b6 {[%clk 0:01:05.6]} 23. Ng3 {[%clk 0:01:03.5]} 23... O-O-O {[%clk
0:01:03.9]} 24. Nf5 {[%clk 0:01:03.4]} 24... Qf6 {[%clk 0:01:03.7]} 25. Kd2
{[%clk 0:00:59.6]} 25... Rge8 {[%clk 0:01:01.3]} 26. f3 {[%clk 0:00:59.6]} 26...
Nc5 {[%clk 0:00:59.4]} 27. Kc2 {[%clk 0:00:59]} 27... Kb7 {[%clk 0:00:57.8]} 28.
h4 {[%clk 0:00:55.2]} 28... Rh8 {[%clk 0:00:51.1]} 29. Raa1 {[%clk 0:00:52.6]}
29... h5 {[%clk 0:00:51.3]} 30. d4 {[%clk 0:00:40.5]} 30... Nd7 {[%clk
0:00:44.5]} 31. hxg5 {[%clk 0:00:28.6]} 31... Qxg5 {[%clk 0:00:43.3]} 32. Rag1
{[%clk 0:00:25.8]} 32... Nf6 {[%clk 0:00:32.3]} 33. dxe5 {[%clk 0:00:22.9]}
33... dxe5 {[%clk 0:00:32.5]} 34. c4 {[%clk 0:00:20.4]} 34... hxg4 {[%clk
0:00:27.1]} 35. Rxh8 {[%clk 0:00:18.5]} 35... Rxh8 {[%clk 0:00:27.8]} 36. Qxe5
{[%clk 0:00:18.5]} 36... Nd7 {[%clk 0:00:19.5]} 37. Nd6+ {[%clk 0:00:18]} 37...
cxd6 {[%clk 0:00:18.4]} 38. Qxg5 {[%clk 0:00:18.9]} 38... Rh2+ {[%clk
0:00:18.3]} 39. Kd3 {[%clk 0:00:17.5]} 39... gxf3 {[%clk 0:00:16.7]} 40. Qe7
{[%clk 0:00:16.6]} 40... Kc7 {[%clk 0:00:16.5]} 41. Qxf7 {[%clk 0:00:15.9]}
41... f2 {[%clk 0:00:16.8]} 42. Rg7 {[%clk 0:00:15.1]} 42... Kb8 {[%clk
0:00:14.7]} 43. Qe8+ {[%clk 0:00:13.6]} 1-0

[Event "Early-Titled-Tuesday-Blitz-July-09-2024"]
[Site "Chess.com"]
[Date "2024.07.09"]
[Round "2"]
[White "MagnusCarlsen"]
[Black "nekotyanof"]
[Result "1-0"]
[WhiteElo "3177"]
[BlackElo "2682"]
[TimeControl "180+1"]
[EndTime "8:17:19 PDT"]
[Termination "MagnusCarlsen won by resignation"]

1. g3 {[%clk 0:02:39.8]} 1... Nf6 {[%clk 0:02:59.3]} 2. c4 {[%clk 0:02:36.2]}
2... g6 {[%clk 0:02:57.7]} 3. b4 {[%clk 0:02:32.8]} 3... Bg7 {[%clk 0:02:54.9]}
4. Bb2 {[%clk 0:02:32.7]} 4... d5 {[%clk 0:02:53.9]} 5. cxd5 {[%clk 0:02:31.3]}
5... Qxd5 {[%clk 0:02:54.8]} 6. Nf3 {[%clk 0:02:31.4]} 6... Nc6 {[%clk
0:02:37.4]} 7. Bg2 {[%clk 0:02:28.3]} 7... Nxb4 {[%clk 0:02:27.5]} 8. Qa4+
{[%clk 0:02:27]} 8... Nc6 {[%clk 0:02:26.5]} 9. O-O {[%clk 0:02:27.5]} 9... Bd7
{[%clk 0:02:23]} 10. Nc3 {[%clk 0:02:18.8]} 10... Qh5 {[%clk 0:02:23.3]} 11.
Rac1 {[%clk 0:01:54.4]} 11... O-O {[%clk 0:02:20.1]} 12. Qf4 {[%clk 0:01:47]}
12... e5 {[%clk 0:02:17.9]} 13. Qg5 {[%clk 0:01:38.4]} 13... e4 {[%clk
0:01:51.3]} 14. Qxh5 {[%clk 0:01:33.6]} 14... Nxh5 {[%clk 0:01:52.2]} 15. Ne1
{[%clk 0:01:31.4]} 15... f5 {[%clk 0:01:52.3]} 16. d3 {[%clk 0:01:27.4]} 16...
Rae8 {[%clk 0:01:48.1]} 17. dxe4 {[%clk 0:01:23.7]} 17... fxe4 {[%clk 0:01:49]}
18. Nc2 {[%clk 0:01:23.2]} 18... a6 {[%clk 0:01:27.2]} 19. Rfd1 {[%clk
0:01:22.2]} 19... Rf7 {[%clk 0:01:27.6]} 20. Ne3 {[%clk 0:01:21.3]} 20... Nd4
{[%clk 0:01:26.3]} 21. Rd2 {[%clk 0:00:59.7]} 21... Bc6 {[%clk 0:01:23.9]} 22.
Nxe4 {[%clk 0:00:54]} 22... Nxe2+ {[%clk 0:01:09.2]} 23. Rxe2 {[%clk 0:00:54.1]}
23... Bxe4 {[%clk 0:01:09.9]} 24. Bxg7 {[%clk 0:00:48.2]} 24... Nxg7 {[%clk
0:01:08.9]} 25. Ng4 {[%clk 0:00:48.1]} 25... Bc6 {[%clk 0:01:05.8]} 26. Nh6+
{[%clk 0:00:46.8]} 26... Kf8 {[%clk 0:01:02.1]} 27. Rxe8+ {[%clk 0:00:47.7]}
27... Nxe8 {[%clk 0:00:59]} 28. Nxf7 {[%clk 0:00:46.6]} 28... Bxg2 {[%clk
0:00:59.6]} 29. Kxg2 {[%clk 0:00:42.3]} 29... Kxf7 {[%clk 0:01:00.5]} 30. f4
{[%clk 0:00:42.8]} 30... Ke6 {[%clk 0:00:58.9]} 31. Kf3 {[%clk 0:00:43.5]} 31...
b6 {[%clk 0:00:57.8]} 32. a4 {[%clk 0:00:39.3]} 32... b5 {[%clk 0:00:52.5]} 33.
axb5 {[%clk 0:00:34.4]} 33... axb5 {[%clk 0:00:53.4]} 34. Rc5 {[%clk 0:00:34.7]}
34... Nd6 {[%clk 0:00:51.5]} 35. Rxc7 {[%clk 0:00:34.9]} 35... b4 {[%clk
0:00:52.4]} 36. Ke2 {[%clk 0:00:30]} 36... h5 {[%clk 0:00:50.9]} 37. Kd3 {[%clk
0:00:29.4]} 37... Kf5 {[%clk 0:00:48.8]} 38. Rc5+ {[%clk 0:00:29.4]} 38... Ke6
{[%clk 0:00:41]} 39. Ra5 {[%clk 0:00:23]} 39... b3 {[%clk 0:00:37.1]} 40. Ra3
{[%clk 0:00:20.9]} 40... h4 {[%clk 0:00:30.3]} 41. Rxb3 {[%clk 0:00:20]} 41...
hxg3 {[%clk 0:00:30.8]} 42. hxg3 {[%clk 0:00:20.9]} 42... Nf5 {[%clk 0:00:31.7]}
43. Ke4 {[%clk 0:00:20.5]} 43... Nd6+ {[%clk 0:00:30.8]} 44. Kf3 {[%clk
0:00:20.8]} 44... g5 {[%clk 0:00:30.5]} 45. fxg5 {[%clk 0:00:20.4]} 45... Kf5
{[%clk 0:00:30.4]} 46. Rd3 {[%clk 0:00:20.2]} 46... Nf7 {[%clk 0:00:29.5]} 47.
Rd5+ {[%clk 0:00:20.3]} 47... Ne5+ {[%clk 0:00:28.7]} 48. Rxe5+ {[%clk
0:00:20.4]} 48... Kxe5 {[%clk 0:00:29.6]} 49. Kg4 {[%clk 0:00:21.1]} 49... Ke6
{[%clk 0:00:30.3]} 50. Kh5 {[%clk 0:00:21.7]} 50... Kf7 {[%clk 0:00:31.1]} 51.
Kh6 {[%clk 0:00:22.1]} 51... Kg8 {[%clk 0:00:31.3]} 52. Kg6 {[%clk 0:00:22.3]}
1-0

[Event "Early-Titled-Tuesday-Blitz-July-09-2024"]
[Site "Chess.com"]
[Date "2024.07.09"]
[Round "2"]
[White "BillCoe"]
[Black "Hirna2005"]
[Result "0-1"]
[WhiteElo "2048"]
[BlackElo "2430"]
[TimeControl "180+1"]
[EndTime "8:17:20 PDT"]
[Termination "Hirna2005 won by checkmate"]

1. e4 {[%clk 0:03:00.9]} 1... g6 {[%clk 0:03:00.5]} 2. d4 {[%clk 0:02:59.8]}
2... Bg7 {[%clk 0:03:01.1]} 3. Nf3 {[%clk 0:02:58.8]} 3... d6 {[%clk 0:03:01.7]}
4. h3 {[%clk 0:02:58.8]} 4... a6 {[%clk 0:03:01.1]} 5. a4 {[%clk 0:02:57.2]}
5... Nf6 {[%clk 0:02:59.7]} 6. Nc3 {[%clk 0:02:57.2]} 6... O-O {[%clk
0:02:59.7]} 7. Be3 {[%clk 0:02:57.3]} 7... Nbd7 {[%clk 0:02:56.9]} 8. Be2 {[%clk
0:02:57.1]} 8... e5 {[%clk 0:02:54.8]} 9. O-O {[%clk 0:02:56.6]} 9... Re8 {[%clk
0:02:52.2]} 10. d5 {[%clk 0:02:55.8]} 10... Nh5 {[%clk 0:02:49.2]} 11. Qd2
{[%clk 0:02:55.7]} 11... Rf8 {[%clk 0:02:42.6]} 12. Bh6 {[%clk 0:02:53.2]} 12...
Qe8 {[%clk 0:02:37.2]} 13. Bxg7 {[%clk 0:02:51.4]} 13... Kxg7 {[%clk 0:02:37]}
14. Nh2 {[%clk 0:02:47.5]} 14... Nf4 {[%clk 0:02:35.2]} 15. Bf3 {[%clk
0:02:41.5]} 15... f5 {[%clk 0:02:34]} 16. Ne2 {[%clk 0:02:39.8]} 16... Nxe2+
{[%clk 0:02:27.2]} 17. Qxe2 {[%clk 0:02:37.7]} 17... Nf6 {[%clk 0:02:27.2]} 18.
g3 {[%clk 0:02:31.2]} 18... fxe4 {[%clk 0:02:25.4]} 19. Bxe4 {[%clk 0:02:26.1]}
19... Bxh3 {[%clk 0:02:25.1]} 20. Rfe1 {[%clk 0:02:26.1]} 20... Qd7 {[%clk
0:02:22.3]} 21. Ra3 {[%clk 0:02:20.4]} 21... Nxe4 {[%clk 0:02:14.3]} 22. Qxe4
{[%clk 0:02:19.1]} 22... Bf5 {[%clk 0:02:13.6]} 23. Qb4 {[%clk 0:02:16.2]} 23...
Bxc2 {[%clk 0:02:00.9]} 24. Rc3 {[%clk 0:02:15.6]} 24... Bf5 {[%clk 0:01:57.1]}
25. Qxb7 {[%clk 0:02:14.9]} 25... Rfc8 {[%clk 0:01:55.3]} 26. f3 {[%clk
0:02:02]} 26... Rab8 {[%clk 0:01:53.6]} 27. Qxa6 {[%clk 0:02:01.8]} 27... Rxb2
{[%clk 0:01:53.5]} 28. g4 {[%clk 0:01:55.8]} 28... Rb1 {[%clk 0:01:41.3]} 29.
Rcc1 {[%clk 0:01:28.8]} 29... Rb6 {[%clk 0:01:28.5]} 30. Qc4 {[%clk 0:01:21.3]}
30... Kh8 {[%clk 0:01:15.9]} 31. gxf5 {[%clk 0:01:20.9]} 31... gxf5 {[%clk
0:01:16.2]} 32. Kf2 {[%clk 0:01:13.3]} 32... Qe7 {[%clk 0:01:12.7]} 33. Rc2
{[%clk 0:01:12.6]} 33... f4 {[%clk 0:01:05.7]} 34. Ke2 {[%clk 0:00:55.2]} 34...
Rg8 {[%clk 0:01:02.9]} 35. Kd3 {[%clk 0:00:52.5]} 35... Qg7 {[%clk 0:00:52.9]}
36. Ng4 {[%clk 0:00:50.8]} 36... Qg6+ {[%clk 0:00:51]} 37. Qe4 {[%clk
0:00:50.2]} 37... Qe8 {[%clk 0:00:43.5]} 38. Rxc7 {[%clk 0:00:47.5]} 38... Rg7
{[%clk 0:00:36.5]} 39. Rxg7 {[%clk 0:00:44]} 39... Kxg7 {[%clk 0:00:35.9]} 40.
Rh1 {[%clk 0:00:43.2]} 40... h5 {[%clk 0:00:35.5]} 41. Nf2 {[%clk 0:00:38.9]}
41... Rb3+ {[%clk 0:00:32.8]} 42. Kc2 {[%clk 0:00:37.7]} 42... Re3 {[%clk
0:00:31.8]} 43. Rg1+ {[%clk 0:00:36.5]} 43... Kh6 {[%clk 0:00:29.4]} 44. Ng4+
{[%clk 0:00:34]} 44... hxg4 {[%clk 0:00:27.6]} 45. Rh1+ {[%clk 0:00:33]} 45...
Kg5 {[%clk 0:00:27]} 46. Qb4 {[%clk 0:00:21.9]} 46... Qg6+ {[%clk 0:00:22.3]}
47. Kb2 {[%clk 0:00:20.9]} 47... Re2+ {[%clk 0:00:22.1]} 48. Kb3 {[%clk
0:00:20]} 48... Qc2+ {[%clk 0:00:21]} 49. Ka3 {[%clk 0:00:18.1]} 49... Qa2#
{[%clk 0:00:21.1]} 0-1

[Event "Early-Titled-Tuesday-Blitz-July-09-2024"]
[Site "Chess.com"]
[Date "2024.07.09"]
[Round "2"]
[White "Hikaru"]
[Black "SirStrateg"]
[Result "1-0"]
[WhiteElo "3231"]
[BlackElo "2683"]
[TimeControl "180+1"]
[EndTime "8:17:21 PDT"]
[Termination "Hikaru won by checkmate"]

1. b3 {[%clk 0:03:00.3]} 1... d5 {[%clk 0:02:52.4]} 2. Bb2 {[%clk 0:03:00.5]}
2... Bf5 {[%clk 0:02:51.7]} 3. Nf3 {[%clk 0:02:58.3]} 3... e6 {[%clk 0:02:52.1]}
4. g3 {[%clk 0:02:58.4]} 4... Nf6 {[%clk 0:02:52.2]} 5. d3 {[%clk 0:02:58.8]}
5... h6 {[%clk 0:02:52.3]} 6. Bg2 {[%clk 0:02:58.8]} 6... Nbd7 {[%clk
0:02:52.7]} 7. O-O {[%clk 0:02:58.7]} 7... c6 {[%clk 0:02:53.3]} 8. Nbd2 {[%clk
0:02:58.5]} 8... a5 {[%clk 0:02:53.8]} 9. a3 {[%clk 0:02:58.2]} 9... Bh7 {[%clk
0:02:51.6]} 10. Re1 {[%clk 0:02:55.1]} 10... Be7 {[%clk 0:02:50.4]} 11. e4
{[%clk 0:02:55.4]} 11... dxe4 {[%clk 0:02:50.8]} 12. dxe4 {[%clk 0:02:54.7]}
12... O-O {[%clk 0:02:51]} 13. Qe2 {[%clk 0:02:49.6]} 13... Nc5 {[%clk
0:02:50.8]} 14. e5 {[%clk 0:02:41.2]} 14... Nd5 {[%clk 0:02:48]} 15. Rac1 {[%clk
0:02:34.3]} 15... b5 {[%clk 0:02:40.8]} 16. Red1 {[%clk 0:02:26.2]} 16... b4
{[%clk 0:02:36.3]} 17. a4 {[%clk 0:02:24.2]} 17... Qc7 {[%clk 0:02:33.2]} 18.
Nc4 {[%clk 0:02:24]} 18... Ne4 {[%clk 0:02:29.7]} 19. Re1 {[%clk 0:02:10.6]}
19... Nec3 {[%clk 0:02:21]} 20. Qf1 {[%clk 0:02:08.9]} 20... Bc5 {[%clk
0:02:17.1]} 21. Nfd2 {[%clk 0:02:07.9]} 21... Rfd8 {[%clk 0:02:09.4]} 22. Ne4
{[%clk 0:02:07.9]} 22... Bxe4 {[%clk 0:01:54.6]} 23. Bxe4 {[%clk 0:02:07.7]}
23... Rd7 {[%clk 0:01:49.4]} 24. Bd3 {[%clk 0:02:01.9]} 24... Qa7 {[%clk
0:01:43.9]} 25. Bxc3 {[%clk 0:01:48.7]} 25... Nxc3 {[%clk 0:01:40.7]} 26. Kg2
{[%clk 0:01:48.9]} 26... Bd4 {[%clk 0:01:31]} 27. f4 {[%clk 0:01:48]} 27... c5
{[%clk 0:01:31.2]} 28. f5 {[%clk 0:01:35.9]} 28... Rf8 {[%clk 0:01:15.3]} 29. f6
{[%clk 0:01:32.7]} 29... Nd5 {[%clk 0:00:49.6]} 30. fxg7 {[%clk 0:01:31.1]}
30... Kxg7 {[%clk 0:00:49]} 31. Qf3 {[%clk 0:01:31.3]} 31... f5 {[%clk
0:00:47.6]} 32. exf6+ {[%clk 0:01:29.4]} 32... Rxf6 {[%clk 0:00:43.2]} 33. Qg4+
{[%clk 0:01:29.4]} 33... Kf7 {[%clk 0:00:36.1]} 34. Rf1 {[%clk 0:01:19.8]} 34...
Qb7 {[%clk 0:00:34]} 35. Be4 {[%clk 0:01:17.9]} 35... Qb8 {[%clk 0:00:18]} 36.
Rxf6+ {[%clk 0:01:11.6]} 36... Nxf6 {[%clk 0:00:16]} 37. Rf1 {[%clk 0:01:12.5]}
37... Qh8 {[%clk 0:00:14.5]} 38. Nxa5 {[%clk 0:01:02.4]} 38... h5 {[%clk
0:00:10.9]} 39. Qf3 {[%clk 0:00:53.8]} 39... Qh6 {[%clk 0:00:06.3]} 40. Nc4
{[%clk 0:00:51.5]} 40... h4 {[%clk 0:00:05.6]} 41. g4 {[%clk 0:00:37.2]} 41...
Ke7 {[%clk 0:00:05.8]} 42. h3 {[%clk 0:00:34]} 42... Rd8 {[%clk 0:00:05.6]} 43.
Bd3 {[%clk 0:00:33.2]} 43... Qg5 {[%clk 0:00:02.8]} 44. a5 {[%clk 0:00:31.3]}
44... Nd5 {[%clk 0:00:02.3]} 45. Qf7# {[%clk 0:00:29.2]} 1-0

[Event "Early-Titled-Tuesday-Blitz-July-09-2024"]
[Site "Chess.com"]
[Date "2024.07.09"]
[Round "2"]
[White "KnightmareJoker"]
[Black "MFatigue"]
[Result "1-0"]
[WhiteElo "2327"]
[BlackElo "2501"]
[TimeControl "180+1"]
[EndTime "8:17:21 PDT"]
[Termination "KnightmareJoker won by checkmate"]

1. e4 {[%clk 0:03:00.9]} 1... e6 {[%clk 0:02:59.9]} 2. d4 {[%clk 0:03:00]} 2...
d5 {[%clk 0:03:00]} 3. exd5 {[%clk 0:02:56.5]} 3... exd5 {[%clk 0:02:59.9]} 4.
Nf3 {[%clk 0:02:55.9]} 4... Nf6 {[%clk 0:02:57.6]} 5. Bd3 {[%clk 0:02:56]} 5...
Bd6 {[%clk 0:02:56.5]} 6. O-O {[%clk 0:02:55.9]} 6... O-O {[%clk 0:02:56]} 7. c3
{[%clk 0:02:54.2]} 7... Bg4 {[%clk 0:02:44.9]} 8. Bg5 {[%clk 0:02:54.3]} 8... h6
{[%clk 0:02:44.7]} 9. Bh4 {[%clk 0:02:54.2]} 9... g5 {[%clk 0:02:44.3]} 10. Bg3
{[%clk 0:02:54.5]} 10... Ne4 {[%clk 0:02:44.4]} 11. Bxd6 {[%clk 0:02:45.8]}
11... cxd6 {[%clk 0:02:38.7]} 12. Re1 {[%clk 0:02:39.7]} 12... f5 {[%clk
0:02:37.5]} 13. Qb3 {[%clk 0:02:26.5]} 13... Nf6 {[%clk 0:02:37.6]} 14. Nbd2
{[%clk 0:02:22.1]} 14... Nbd7 {[%clk 0:02:31]} 15. h3 {[%clk 0:02:21.5]} 15...
Bh5 {[%clk 0:02:31.2]} 16. Bxf5 {[%clk 0:02:18.5]} 16... b6 {[%clk 0:02:10.3]}
17. Be6+ {[%clk 0:02:04.3]} 17... Kg7 {[%clk 0:02:09.3]} 18. Bxd5 {[%clk
0:02:01.4]} 18... Nxd5 {[%clk 0:02:09.3]} 19. Qxd5 {[%clk 0:02:01.8]} 19... Nf6
{[%clk 0:02:10.2]} 20. Qc4 {[%clk 0:01:37.8]} 20... Bf7 {[%clk 0:02:05.5]} 21.
Qd3 {[%clk 0:01:36.6]} 21... Bg6 {[%clk 0:02:04.7]} 22. Qb5 {[%clk 0:01:30.4]}
22... Qc7 {[%clk 0:01:47.9]} 23. Re3 {[%clk 0:01:27.3]} 23... Rae8 {[%clk
0:01:43.8]} 24. Rae1 {[%clk 0:01:26.3]} 24... Rxe3 {[%clk 0:01:41.3]} 25. Rxe3
{[%clk 0:01:27]} 25... Bf7 {[%clk 0:01:36.7]} 26. c4 {[%clk 0:01:05.3]} 26...
Rc8 {[%clk 0:01:22.4]} 27. b3 {[%clk 0:01:01.7]} 27... d5 {[%clk 0:01:23]} 28.
Ne5 {[%clk 0:00:57.5]} 28... Be8 {[%clk 0:01:22.2]} 29. Qb4 {[%clk 0:00:54.6]}
29... a5 {[%clk 0:01:18.7]} 30. Qa3 {[%clk 0:00:53.1]} 30... a4 {[%clk
0:01:04.1]} 31. Ng4 {[%clk 0:00:39.6]} 31... Bf7 {[%clk 0:00:46.9]} 32. Nxf6
{[%clk 0:00:38.1]} 32... Kxf6 {[%clk 0:00:46.7]} 33. Qxa4 {[%clk 0:00:26]} 33...
dxc4 {[%clk 0:00:41.2]} 34. Nxc4 {[%clk 0:00:26.5]} 34... Bxc4 {[%clk
0:00:42.1]} 35. bxc4 {[%clk 0:00:24.6]} 35... Qxc4 {[%clk 0:00:41]} 36. Qxc4
{[%clk 0:00:23.5]} 36... Rxc4 {[%clk 0:00:41.9]} 37. Rb3 {[%clk 0:00:23.3]}
37... Rxd4 {[%clk 0:00:38.3]} 38. Rxb6+ {[%clk 0:00:23.3]} 38... Kg7 {[%clk
0:00:39.2]} 39. Rb2 {[%clk 0:00:23.1]} 39... Rd1+ {[%clk 0:00:38.3]} 40. Kh2
{[%clk 0:00:23.8]} 40... Ra1 {[%clk 0:00:38.3]} 41. Kg3 {[%clk 0:00:23.9]} 41...
Kg6 {[%clk 0:00:38.9]} 42. Kf3 {[%clk 0:00:24.1]} 42... Kh5 {[%clk 0:00:35.5]}
43. Rb6 {[%clk 0:00:19.5]} 43... g4+ {[%clk 0:00:29]} 44. hxg4+ {[%clk
0:00:19.7]} 44... Kg5 {[%clk 0:00:29.9]} 45. Kg3 {[%clk 0:00:20.4]} 45... Rxa2
{[%clk 0:00:30.1]} 46. f4# {[%clk 0:00:20.4]} 1-0

[Event "Early-Titled-Tuesday-Blitz-July-09-2024"]
[Site "Chess.com"]
[Date "2024.07.09"]
[Round "2"]
[White "Kobalia"]
[Black "JueIes"]
[Result "1-0"]
[WhiteElo "2793"]
[BlackElo "2555"]
[TimeControl "180+1"]
[EndTime "8:17:23 PDT"]
[Termination "Kobalia won by resignation"]

1. e4 {[%clk 0:02:59.6]} 1... c6 {[%clk 0:02:59.7]} 2. d4 {[%clk 0:02:58.4]}
2... d5 {[%clk 0:03:00.2]} 3. e5 {[%clk 0:02:58.2]} 3... Bf5 {[%clk 0:02:57.7]}
4. Nf3 {[%clk 0:02:57.9]} 4... e6 {[%clk 0:02:57.7]} 5. Be2 {[%clk 0:02:58.1]}
5... Nd7 {[%clk 0:02:54.5]} 6. O-O {[%clk 0:02:57.9]} 6... h6 {[%clk 0:02:53.6]}
7. a4 {[%clk 0:02:56.1]} 7... Ne7 {[%clk 0:02:52.8]} 8. Nbd2 {[%clk 0:02:52.6]}
8... Qc7 {[%clk 0:02:52.6]} 9. Nb3 {[%clk 0:02:50.1]} 9... g5 {[%clk 0:02:50.9]}
10. Ne1 {[%clk 0:02:48.1]} 10... Bg7 {[%clk 0:02:27.4]} 11. f4 {[%clk
0:02:46.3]} 11... Be4 {[%clk 0:02:07.6]} 12. Bd3 {[%clk 0:02:41.7]} 12... Bxd3
{[%clk 0:01:55.6]} 13. Nxd3 {[%clk 0:02:41]} 13... O-O-O {[%clk 0:01:47.8]} 14.
fxg5 {[%clk 0:02:40.2]} 14... hxg5 {[%clk 0:01:47.8]} 15. Rxf7 {[%clk
0:02:39.2]} 15... Nf5 {[%clk 0:01:46.4]} 16. g4 {[%clk 0:02:38.8]} 16... Nxd4
{[%clk 0:01:24]} 17. Nxd4 {[%clk 0:02:36.8]} 17... Qb6 {[%clk 0:01:24.1]} 18.
Be3 {[%clk 0:02:34.2]} 18... Bxe5 {[%clk 0:01:18.1]} 19. a5 {[%clk 0:00:47]}
19... Bxh2+ {[%clk 0:01:05.6]} 20. Kf1 {[%clk 0:00:45.5]} 20... Qc7 {[%clk
0:00:53.7]} 21. Nxe6 {[%clk 0:00:42.1]} 21... Qg3 {[%clk 0:00:45.7]} 22. Rf3
{[%clk 0:00:26.6]} 22... Qxg4 {[%clk 0:00:39.4]} 23. Nxd8 {[%clk 0:00:26.5]}
23... Rxd8 {[%clk 0:00:20.4]} 24. Nf2 {[%clk 0:00:26]} 24... Qg1+ {[%clk
0:00:18.2]} 25. Ke2 {[%clk 0:00:25.6]} 25... Qg2 {[%clk 0:00:18.7]} 26. Qh1
{[%clk 0:00:23.4]} 26... Qxh1 {[%clk 0:00:19.1]} 27. Rxh1 {[%clk 0:00:22.4]}
27... Be5 {[%clk 0:00:19.7]} 28. Nd3 {[%clk 0:00:21.1]} 28... Bd6 {[%clk
0:00:18.6]} 29. Rh7 {[%clk 0:00:19.5]} 29... g4 {[%clk 0:00:18.2]} 30. Rff7
{[%clk 0:00:19.3]} 30... g3 {[%clk 0:00:17.8]} 31. Kf3 {[%clk 0:00:18.9]} 31...
c5 {[%clk 0:00:13.9]} 32. Bf4 {[%clk 0:00:18.6]} 32... Bxf4 {[%clk 0:00:12.2]}
33. Kxf4 {[%clk 0:00:17.6]} 33... g2 {[%clk 0:00:11.2]} 34. Rhg7 {[%clk
0:00:15.3]} 34... c4 {[%clk 0:00:10.3]} 35. Nb4 {[%clk 0:00:12.8]} 35... Nc5
{[%clk 0:00:03]} 36. Rc7+ {[%clk 0:00:11.9]} 36... Kb8 {[%clk 0:00:03]} 37. Rxc5
{[%clk 0:00:12]} 1-0